bitfinex-derivatives/quotes_ETHF0:USTF0_20250410
["timestamp","ask_amount","ask_price","bid_price","bid_amount"]
[1744307346350,0.00994199,1505.5,1505.4,4.53725]
[1744307346548,0.00994199,1505.5,1505.4,12.74505]
[1744307346743,0.00994199,1505.5,1505.4,7.74505]
[1744307347043,1.33930199,1505.5,1505.4,6.4156]
[1744307347247,1.32945,1505.4,1505.3,0.00994199]
[1744307347946,4.53725,1505.4,1505.3,0.00994199]
[1744307348145,9.53725,1505.4,1505.3,1.99e-06]
[1744307348543,1.32945,1505.4,1505.3,1.99e-06]
[1744307348745,3.44634199,1505.5,1505.4,1.32945]
[1744307349042,0.00994199,1505.5,1505.4,4.69775]
[1744307349248,0.00994199,1505.5,1505.4,13.14895]
[1744307349849,0.00994199,1505.5,1505.4,8.14895]
[1744307350942,0.00994199,1505.5,1505.3,3.20780199]
[1744307351149,0.00994199,1505.5,1505.4,1.32945]
[1744307351546,0.00994199,1505.5,1505.4,4.83895]
[1744307351744,0.00994199,1505.5,1505.4,1.32945]
[1744307351947,1.99e-06,1505.5,1505.4,9.83895]
[1744307352252,7.70764277,1505.8,1505.7,1.32918]
[1744307352448,7.70764277,1505.8,1505.7,4.53698]
[1744307352648,7.70764277,1505.8,1505.7,9.53698]
[1744307352843,7.70764277,1505.8,1505.7,3.2078]
[1744307353144,0.00994199,1505.9,1505.7,4.53695]
[1744307353343,3.302,1505.8,1505.7,4.53695]
[1744307353551,7.83898,1505.8,1505.4,1.32945]
[1744307353751,10.0275,1505.8,1505.3,3.20780199]
[1744307353943,1.32937,1505.5,1505.3,3.20780199]
[1744307354238,3.4783,1505.4,1505.3,4.53734199]
[1744307354442,4.80775,1505.4,1505.3,1.99e-06]
[1744307354640,3.4783,1505.4,1505.3,1.99e-06]
[1744307354844,9.80775,1505.4,1505.3,1.99e-06]
[1744307355457,8.4783,1505.4,1505.3,1.99e-06]
[1744307355655,3.4783,1505.4,1505.3,1.32954199]
[1744307356349,3.5177,1505.8,1505.4,3.32362]
[1744307356654,3.4874,1505.7,1505.6,1.32927]
[1744307358048,10.18491539,1505.9,1505.8,1.3291]
[1744307358350,15.00134539,1505.9,1505.7,1.32912]
[1744307358553,13.67231539,1505.9,1505.7,1.32912]
[1744307358947,13.67231539,1505.9,1505.8,1.3291]
[1744307359446,13.67231539,1505.9,1505.5,9.95111]
[1744307359642,15.00134539,1505.9,1505.5,6.6279]
[1744307359859,15.00134539,1505.9,1505.6,1.3292]
[1744307360046,13.67231539,1505.9,1505.8,1.3291]
[1744307360248,1.3292,1505.7,1505.3,9.86880199]
[1744307360453,3.2643,1505.6,1505.5,1.32936]
[1744307360651,7.80139,1505.6,1505.4,1.32941]
[1744307360855,10.6413,1505.6,1505.3,1.99e-06]
[1744307361045,1.32941,1505.5,1505.3,1.32949199]
[1744307361356,7.80155,1505.4,1505.3,1.99e-06]
[1744307361749,12.80155,1505.4,1505.3,1.99e-06]
[1744307365650,3.2643,1505.4,1505.3,1.32954199]
[1744307366053,4.26174372,1505.4,1505.3,1.99e-06]
[1744307366255,13.79899372,1505.4,1505.3,1.99e-06]
[1744307367559,8.79899372,1505.4,1505.3,1.99e-06]
[1744307367961,13.79899372,1505.4,1505.3,1.99e-06]
[1744307368255,19.65099372,1505.4,1505.3,1.99e-06]
[1744307370351,14.65099372,1505.4,1505.3,1.99e-06]
[1744307370559,19.65099372,1505.4,1505.3,1.99e-06]
[1744307371353,3.2078,1505.1,1504.0,3.2078]
[1744307371553,1.33046,1504.3,1504.2,1.33047]
[1744307371853,3.2078,1504.6,1504.4,1.33033]
[1744307372057,9.0598,1504.9,1504.5,3.32562]
[1744307372259,119.1782,1505.0,1504.7,1.32999]
[1744307372260,3.2814,1504.8,1504.7,1.32999]
[1744307372562,0.00994199,1504.9,1504.8,1.32998]
[1744307372758,0.00994199,1504.9,1504.8,4.53778]
[1744307373064,0.00994199,1504.9,1504.8,9.53778]
[1744307373260,1.32998,1504.8,1504.7,3.5819]
[1744307373456,1.33986199,1504.9,1504.8,1.32998]
[1744307373659,0.00994199,1504.9,1504.8,1.32998]
[1744307374163,1.33983199,1504.9,1504.8,1.32998]
[1744307374463,0.00994199,1504.9,1504.8,1.32998]
[1744307374862,0.99744372,1505.4,1505.2,1.32963]
[1744307375058,2.32689372,1505.4,1505.3,3.535]
[1744307375259,2.32689372,1505.4,1505.3,4.86454]
[1744307375655,0.99744372,1505.4,1505.3,9.86454]
[1744307376562,0.00994199,1505.5,1505.2,1.32957]
[1744307376866,4.88283,1505.4,1505.2,1.32957]
[1744307377061,3.5533,1505.4,1505.1,3.3347]
[1744307377265,6.53166,1505.3,1504.9,4.86483]
[1744307377565,3.5533,1505.2,1505.1,1.32971]
[1744307377865,1.32961,1505.3,1505.1,1.32971]
[1744307378055,4.77501,1505.3,1505.2,3.535]
[1744307378256,4.77501,1505.3,1505.2,4.86463]
[1744307378658,4.77501,1505.3,1505.2,3.535]
[1744307378862,3.4454,1505.3,1505.2,4.86463]
[1744307379067,12.15592,1505.4,1505.3,1.32954]
[1744307379259,12.15592,1505.4,1505.2,4.86456]
[1744307379454,1.32954,1505.3,1505.2,4.86456]
[1744307379959,1.33937199,1505.5,1505.4,1.32945]
[1744307380158,1.32954,1505.3,1505.2,3.535]
[1744307380362,1.32945,1505.4,1505.3,0.00994199]
[1744307380765,4.78476199,1505.5,1505.3,0.00994199]
[1744307380963,3.45534199,1505.5,1505.4,1.32945]
[1744307381167,0.00994199,1505.5,1505.4,4.72085]
[1744307381368,0.00994199,1505.5,1505.4,12.97645]
[1744307382461,0.00994199,1505.5,1505.4,4.72085]
[1744307382961,0.00994199,1505.5,1505.4,16.18425]
[1744307383164,10.1749734,1505.8,1505.4,16.18425]
[1744307383372,10.1749734,1505.8,1505.7,1.32918]
[1744307383862,10.1749734,1505.8,1505.7,9.84748]
[1744307384169,13.4974734,1506.0,1505.4,6.4634]
[1744307384372,13.4974734,1506.0,1505.5,4.84761]
[1744307384373,1.32927,1505.6,1505.5,4.84761]
[1744307384666,3.2078,1505.7,1505.5,3.5183]
[1744307384864,0.00994199,1505.9,1505.8,1.3291]
[1744307385167,0.00994199,1505.9,1505.8,4.5369]
[1744307385361,0.00994199,1505.9,1505.8,9.5369]
[1744307385770,0.00994199,1505.9,1505.8,13.1098]
[1744307386160,1.33895199,1505.9,1505.8,3.5729]
[1744307386365,1.3291,1505.8,1505.7,3.5183]
[1744307386669,1.32917,1505.8,1505.5,7.1218]
[1744307386868,1.32911,1505.8,1505.7,1.32914]
[1744307387072,1.32918,1505.7,1505.6,4.84752]
[1744307387364,4.88387199,1505.9,1505.8,1.3291]
[1744307387565,6.87737199,1505.9,1505.6,3.5183]
[1744307387871,4.88392199,1505.9,1505.8,1.3291]
[1744307388071,3.55484199,1505.9,1505.7,3.383]
[1744307388263,4.88385199,1505.9,1505.8,1.3291]
[1744307388470,1.3291,1505.8,1505.7,4.7121]
[1744307388667,4.88392199,1505.9,1505.8,1.3291]
[1744307389165,1.3291,1505.8,1505.7,3.383]
[1744307389372,1.32918,1505.7,1505.6,1.32924]
[1744307389670,3.4888,1505.7,1505.6,1.32927]
[1744307389965,3.4888,1505.7,1505.5,10.5048]
[1744307390173,1.32927,1505.6,1505.5,11.83412]
[1744307390365,1.32943,1505.5,1505.4,1.32939]
[1744307390565,3.3005,1505.5,1505.4,4.75049]
[1744307390960,1.32945,1505.4,1505.3,0.00994199]
[1744307391174,4.53725,1505.4,1505.3,0.00994199]
[1744307391470,8.3005,1505.5,1505.3,0.00994199]
[1744307391471,1.32942,1505.5,1505.3,0.00994199]
[1744307391673,4.53715,1505.6,1505.5,1.32936]
[1744307391969,4.53715,1505.6,1505.4,4.75051]
[1744307391970,1.32936,1505.5,1505.4,4.75051]
[1744307392474,1.32936,1505.5,1505.4,3.4211]
[1744307392679,1.32945,1505.4,1505.3,0.00994199]
[1744307392865,13.215,1505.7,1505.3,0.00994199]
[1744307393065,4.88219,1505.6,1505.5,1.3293]
[1744307393869,1.32938,1505.5,1505.4,1.32938]
[1744307394174,6.7607,1505.6,1505.3,3.59354199]
[1744307394373,1.32942,1505.5,1505.4,1.32943]
[1744307394571,4.88232,1505.5,1505.4,1.32943]
[1744307394864,1.32945,1505.4,1505.3,0.00994199]
[1744307395064,8.09015,1505.4,1505.3,0.00994199]
[1744307395266,16.67895,1505.4,1505.3,0.00994199]
[1744307395574,11.67895,1505.4,1505.3,0.00994199]
[1744307395870,16.67895,1505.4,1505.3,0.00994199]
[1744307396765,11.67895,1505.4,1505.3,0.00994199]
[1744307397872,16.67895,1505.4,1505.3,0.00994199]
[1744307398775,11.67895,1505.4,1505.3,0.00994199]
[1744307398972,6.7607,1505.4,1505.3,1.33948199]
[1744307399172,10.34659759,1505.6,1505.3,0.00994199]
[1744307399380,14.90034759,1505.6,1505.5,1.32936]
[1744307399764,14.90034759,1505.6,1505.4,1.32938]
[1744307399765,1.32941,1505.5,1505.4,1.32938]
[1744307399968,4.55381,1505.5,1505.4,1.32938]
[1744307400172,30.1171853,1505.7,1505.4,5.0]
[1744307400173,2.02948289,1505.7,1505.4,5.0]
[1744307400379,0.00994199,1505.9,1505.4,5.0]
[1744307400380,15.23440224,1506.7,1505.8,3.2078]
[1744307400674,3.2244,1506.6,1506.3,3.2078]
[1744307400871,0.00994199,1506.5,1506.2,3.2078]
[1744307401071,3.2244,1506.6,1506.5,1.32848]
[1744307401271,15.23440224,1506.7,1506.6,1.32839]
[1744307401470,15.24434423,1506.7,1506.6,4.53619]
[1744307401673,15.24434423,1506.7,1506.6,9.53619]
[1744307403879,5.50326687,1506.7,1506.5,1.32845]
[1744307404076,0.00994199,1506.6,1506.4,1.33849199]
[1744307404384,3.21774199,1506.5,1506.4,0.00994199]
[1744307404682,0.00994199,1506.5,1506.4,1.33851199]
[1744307404873,2.03942488,1506.5,1506.4,0.00994199]
[1744307405078,5.27482488,1506.5,1506.4,1.33849199]
[1744307405383,0.00994199,1506.7,1506.6,1.32839]
[1744307405568,3.25528398,1506.7,1506.6,1.32839]
[1744307405882,8.49256687,1506.7,1506.5,1.32848]
[1744307406080,8.48262488,1506.7,1506.6,1.32839]
[1744307406482,3.24534199,1506.7,1506.6,1.32839]
[1744307407185,3.25528398,1506.7,1506.6,1.32839]
[1744307407388,5.28476687,1506.7,1506.5,1.32844]
[1744307407577,0.00994199,1506.5,1506.4,1.33849199]
[1744307407780,0.00994199,1506.5,1506.4,4.54629199]
[1744307408080,11.93369199,1506.7,1506.4,3.21774199]
[1744307408291,0.00994199,1506.5,1506.4,4.54631199]
[1744307408691,10.60534199,1506.7,1506.6,1.32839]
[1744307408891,13.96312488,1506.7,1506.6,1.32839]
[1744307409086,13.97306687,1506.7,1506.6,1.32839]
[1744307409286,3.24534199,1506.7,1506.6,1.32839]
[1744307409691,0.00994199,1506.7,1506.6,4.53619]
[1744307409882,7.36,1507.0,1506.6,4.53619]
[1744307409883,5.852,1507.2,1506.6,11.52878]
[1744307410088,3.2932,1507.2,1506.9,6.52797]
[1744307410391,3.2932,1507.2,1507.1,4.53575]
[1744307410589,13.212,1507.6,1507.5,1.3276]
[1744307410892,2.03942488,1507.6,1507.5,1.3276]
[1744307411091,3.4579,1507.8,1507.5,1.3276]
[1744307411092,22.41339224,1508.2,1507.7,3.31837]
[1744307411391,0.00994199,1508.0,1507.9,1.32724]
[1744307411591,0.01657207,1508.1,1508.0,1.32716]
[1744307411784,0.00994199,1507.9,1507.7,3.2078]
[1744307411990,0.00994199,1507.8,1507.7,1.32739]
[1744307412185,3.21774199,1507.8,1507.5,3.2078]
[1744307412392,0.00994199,1507.6,1507.5,3.2078]
[1744307412594,0.00994199,1507.6,1507.5,4.5354]
[1744307412893,3.384,1507.7,1507.6,1.32751]
[1744307413190,0.00994199,1507.6,1507.5,4.53533]
[1744307413587,3.384,1507.7,1507.6,1.32751]
[1744307413788,7.36563008,1508.1,1508.0,1.32716]
[1744307413984,0.00663008,1508.1,1508.0,1.32716]
[1744307414187,1.32719,1508.0,1507.8,1.3273]
[1744307414388,0.00994199,1507.8,1507.7,1.32742]
[1744307414585,0.00994199,1507.7,1507.5,4.53536]
[1744307414793,0.00994199,1507.6,1507.5,4.5354]
[1744307415192,3.4294,1507.6,1507.5,4.5354]
[1744307415989,1.3276,1507.5,1507.4,0.00994199]
[1744307416290,1.33754199,1507.5,1507.4,0.00994199]
[1744307416497,10.11082488,1507.5,1507.4,0.00994199]
[1744307417101,10.11082488,1507.5,1507.4,1.33763199]
[1744307417400,8.78322488,1507.5,1507.4,1.33763199]
[1744307417598,10.11082488,1507.5,1507.4,1.33763199]
[1744307417801,3.4294,1507.5,1507.4,1.33763199]
[1744307417993,9.2086,1507.8,1507.7,1.32742]
[1744307418199,7.89142488,1507.8,1507.7,1.32742]
[1744307418498,9.21875488,1507.8,1507.7,1.32742]
[1744307418697,7.96619,1508.0,1507.9,1.32724]
[1744307418890,9.99567289,1508.0,1507.6,9.89042]
[1744307419088,0.00994199,1507.9,1507.8,1.32727]
[1744307419293,3.4048,1508.0,1507.9,1.32724]
[1744307419491,3.41474199,1508.0,1507.6,9.89055]
[1744307419696,0.00994199,1507.9,1507.6,3.2078]
[1744307419890,3.32916199,1507.5,1507.0,3.2078]
[1744307420096,0.00994199,1507.1,1506.7,3.32055]
[1744307420295,0.00994199,1506.9,1506.8,1.32815]
[1744307420500,1.33815199,1506.8,1506.7,1.32825]
[1744307420693,0.00994199,1506.8,1506.7,1.32825]
[1744307420901,3.1214,1507.1,1506.6,6.52871]
[1744307421097,0.00994199,1506.8,1506.7,1.3283]
[1744307421403,4.45955199,1506.8,1506.7,1.3283]
[1744307421603,6.47909289,1506.8,1506.7,1.3283]
[1744307421805,1.3283,1506.7,1506.6,4.54607199]
[1744307422098,4.45964199,1506.7,1506.6,4.54613199]
[1744307422398,11.47918289,1506.7,1506.6,0.00994199]
[1744307422704,0.00994199,1506.3,1506.2,1.32874]
[1744307423097,3.1214,1506.3,1506.2,1.32874]
[1744307423407,1.32839,1506.6,1506.4,1.3285]
[1744307423594,0.00994199,1506.5,1506.4,1.3285]
[1744307423796,3.44934199,1506.6,1506.5,1.32848]
[1744307423995,4.77773199,1506.6,1506.4,1.32851]
[1744307424196,3.44934199,1506.6,1506.5,1.32848]
[1744307424607,6.65714199,1506.6,1506.3,3.283]
[1744307424799,0.00994199,1506.5,1506.4,1.32857]
[1744307425103,3.4394,1506.6,1506.5,1.32848]
[1744307425304,0.00994199,1506.5,1506.3,3.283]
[1744307425504,0.00994199,1506.5,1506.4,1.32857]
[1744307425697,3.44934199,1506.5,1506.4,1.32857]
[1744307426299,3.4394,1506.5,1506.4,1.32857]
[1744307426900,4.77782199,1506.5,1506.3,3.283]
[1744307427102,0.00994199,1506.4,1506.1,0.00994199]
[1744307427308,3.21774199,1506.4,1506.3,1.32865]
[1744307427507,3.2078,1506.4,1506.1,0.00994199]
[1744307427703,3.2078,1506.4,1506.3,1.32865]
[1744307427909,1.32854,1506.5,1506.3,1.32865]
[1744307427910,7.342,1506.7,1506.6,1.32839]
[1744307428209,8.68031199,1506.7,1506.5,1.32841]
[1744307428410,0.00994199,1506.7,1506.6,1.32839]
[1744307429210,1.33832199,1506.7,1506.5,1.32848]
[1744307429400,0.00994199,1506.7,1506.6,1.32839]
[1744307429597,6.35124199,1506.9,1506.5,3.3212]
[1744307429810,0.00994199,1506.9,1506.8,1.32821]
[1744307430197,0.00994199,1506.9,1506.8,9.53601]
[1744307430511,1.99e-06,1506.9,1506.8,9.53601]
[1744307432502,1.99e-06,1506.9,1506.8,10.0615064]
[1744307433009,1.99e-06,1506.9,1506.8,9.53601]
[1744307436913,1.99e-06,1506.9,1506.8,7.83921]
[1744307438612,3.32076,1506.7,1506.4,3.2078]
[1744307438819,5.00994398,1506.9,1506.4,3.2078]
[1744307438820,0.00994199,1506.5,1506.4,1.32857]
[1744307439318,7.78748,1506.8,1506.7,1.3283]
[1744307439718,6.46914199,1506.8,1506.5,3.3212]
[1744307439908,1.33824199,1506.7,1506.6,1.32832]
[1744307440317,0.00994199,1506.7,1506.6,1.32832]
[1744307440814,3.21774199,1506.7,1506.4,6.4265]
[1744307441015,3.33133199,1506.5,1506.2,3.2078]
[1744307441205,1.32874,1506.2,1506.1,0.00994199]
[1744307441517,1.33868199,1506.2,1506.1,0.00994199]
[1744307441704,9.68708199,1506.2,1506.1,0.00994199]
[1744307442029,3.2078,1506.3,1506.2,1.32874]
[1744307442217,0.00994199,1506.2,1506.1,1.33871199]
[1744307442613,1.33868199,1506.2,1506.1,0.00994199]
[1744307442808,1.33868199,1506.2,1506.1,1.33877199]
[1744307442809,5.00994199,1506.2,1506.1,1.33877199]
[1744307443013,6.678,1506.8,1506.7,1.3283]
[1744307443217,6.678,1506.8,1506.5,1.32841]
[1744307443218,0.00994199,1506.6,1506.5,1.32841]
[1744307443420,3.15464199,1506.6,1506.5,1.32841]
[1744307443823,3.1447,1506.6,1506.5,1.32841]
[1744307444424,1.99e-06,1506.9,1506.8,1.32821]
[1744307444616,3.09614398,1506.9,1506.8,1.32821]
[1744307444814,3.08620199,1506.9,1506.8,1.32821]
[1744307445014,3.08620199,1506.9,1506.8,4.53601]
[1744307445219,10.90921561,1507.7,1507.5,1.3276]
[1744307445425,5.15137596,1507.6,1507.5,1.3276]
[1744307445723,5.14143397,1507.6,1507.5,1.3276]
[1744307445917,3.69328397,1507.6,1507.5,6.3276]
[1744307446117,7.70141561,1507.7,1507.6,1.32751]
[1744307446323,7.7113576,1507.7,1507.6,11.87731]
[1744307446528,2.23920158,1507.7,1507.6,16.87731]
[1744307446715,5.87258487,1507.9,1507.8,1.32733]
[1744307446918,7.341,1509.0,1507.8,1.32733]
[1744307446919,5.852,1508.9,1508.8,1.32645]
[1744307447220,15.23440224,1509.1,1508.8,1.32645]
[1744307447221,15.23440224,1509.1,1509.0,1.32628]
[1744307447423,15.23440224,1509.1,1509.0,4.53408]
[1744307447926,15.24434423,1509.1,1508.9,3.21774199]
[1744307448221,15.24434423,1509.1,1509.0,1.32628]
[1744307448426,18.35754423,1509.1,1508.9,1.33625199]
[1744307448629,18.35754423,1509.1,1508.9,0.00994199]
[1744307448826,0.00994199,1509.0,1508.9,4.54411199]
[1744307449226,3.12314199,1509.0,1508.9,3.21774199]
[1744307449544,3.12314199,1509.0,1508.9,0.00994199]
[1744307450124,3.12314199,1509.0,1508.9,1.33631199]
[1744307450524,3.1132,1509.0,1508.9,4.54411199]
[1744307451027,3.12314199,1509.0,1508.9,3.21774199]
[1744307451236,3.12314199,1509.0,1508.9,4.54411199]
[1744307451530,3.12314199,1509.0,1508.9,3.21774199]
[1744307451718,0.00663008,1509.2,1509.1,1.32619]
[1744307451926,3.14327207,1509.2,1509.1,1.32619]
[1744307452221,3.14327207,1509.2,1508.9,6.46854199]
[1744307452521,3.13333008,1509.2,1509.1,1.32619]
[1744307452718,0.00663008,1509.2,1509.1,1.32619]
[1744307452919,0.00663008,1509.2,1509.1,4.57699]
[1744307453317,0.00663008,1509.2,1509.1,1.32619]
[1744307453518,0.01657207,1509.2,1509.1,1.32619]
[1744307453729,3.14327207,1509.2,1509.0,4.53404]
[1744307453923,3.13333008,1509.2,1509.1,1.32619]
[1744307454835,1.3257,1509.7,1509.2,3.31505]
[1744307455026,0.00994199,1509.5,1509.4,1.32593]
[1744307455933,6.4427,1509.8,1509.7,1.32566]
[1744307456328,6.45264199,1509.8,1509.7,1.32566]
[1744307456531,3.32224199,1509.8,1509.7,1.32566]
[1744307456721,0.00994199,1509.8,1509.7,1.32566]
[1744307457331,1.32535,1510.1,1509.8,1.32551]
[1744307457536,0.00994199,1509.8,1509.7,1.32562]
[1744307457834,0.00994199,1509.9,1509.8,0.00994199]
[1744307458025,0.00994199,1509.9,1509.8,1.33546199]
[1744307458225,4.60255,1510.1,1509.9,1.32546]
[1744307458433,0.00994199,1509.9,1509.8,1.33551199]
[1744307459229,1.33543199,1509.9,1509.8,0.00994199]
[1744307459430,0.00994199,1509.9,1509.8,0.00994199]
[1744307459632,4.60257,1510.1,1509.8,0.00994199]
[1744307459838,1.33543199,1509.9,1509.8,0.00994199]
[1744307460135,0.00994199,1509.9,1509.8,1.33551199]
[1744307460436,1.33543199,1509.9,1509.8,0.00994199]
[1744307461137,4.54323199,1509.9,1509.8,0.00994199]
[1744307461338,3.31401,1509.8,1509.2,3.2078]
[1744307461539,0.00994199,1509.4,1509.3,1.32601]
[1744307461739,0.00994199,1509.3,1509.0,3.2078]
[1744307461940,0.00994199,1509.2,1509.1,1.32619]
[1744307462338,3.2019,1509.2,1509.1,1.32619]
[1744307462835,3.21184199,1509.2,1509.1,1.32619]
[1744307463230,3.21184199,1509.2,1509.0,3.21774199]
[1744307463436,1.33613199,1509.1,1509.0,0.00994199]
[1744307463631,4.54393199,1509.1,1509.0,0.00994199]
[1744307463840,1.33613199,1509.1,1509.0,0.00994199]
[1744307464038,12.95143199,1509.1,1509.0,0.00994199]
[1744307464242,1.3266,1508.7,1508.5,1.3267]
[1744307464436,3.41744199,1508.6,1508.3,13.4624891]
[1744307464652,0.00994199,1508.7,1508.4,6.52479]
[1744307464847,3.4075,1508.9,1508.6,4.53443]
[1744307465051,0.00994198,1509.3,1509.2,1.3261]
[1744307465654,0.00994198,1509.3,1509.2,9.4101]
[1744307465852,0.00994198,1509.3,1509.2,4.4101]
[1744307466260,0.01988397,1509.3,1509.1,1.33609199]
[1744307466459,0.00994199,1509.2,1509.1,1.33613199]
[1744307466854,3.16054198,1509.3,1509.2,1.3261]
[1744307467360,0.00994198,1509.3,1509.2,4.5339]
[1744307467759,0.00994198,1509.3,1509.2,9.5339]
[1744307468255,3.2078,1510.3,1509.2,14.1998]
[1744307468458,3.1506,1510.0,1509.9,4.53329]
[1744307468659,3.16054199,1510.0,1509.9,4.53329]
[1744307468848,3.1506,1510.0,1509.9,4.53329]
[1744307469047,3.1986,1510.5,1510.4,1.32505]
[1744307469257,3.2078,1511.0,1510.5,3.31236]
[1744307469455,0.00994199,1510.9,1510.6,6.51996]
[1744307469659,0.01988398,1510.9,1510.8,1.3247]
[1744307470562,1.3247,1510.8,1510.5,1.32496]
[1744307470858,0.00994199,1510.6,1510.5,1.32496]
[1744307471249,3.0703,1510.7,1510.6,1.32487]
[1744307471648,3.08024199,1510.7,1510.6,1.32487]
[1744307471858,0.00994199,1510.9,1510.8,1.3247]
[1744307472256,0.00994199,1510.9,1510.8,4.5325]
[1744307472455,1.99e-06,1510.9,1510.8,4.5325]
[1744307473053,0.00994398,1510.9,1510.8,4.5325]
[1744307473258,1.99e-06,1510.9,1510.8,4.5325]
[1744307473857,0.10901762,1511.6,1511.5,1.32408]
[1744307474158,0.11895961,1511.6,1511.5,1.32408]
[1744307475065,0.11895961,1511.6,1511.5,9.53188]
[1744307475066,0.10901762,1511.6,1511.5,9.53188]
[1744307475459,7.62e-06,1511.6,1511.5,12.78458]
[1744307476259,104.31458,1512.8,1512.3,1.32334]
[1744307476260,3.2078,1512.6,1512.3,1.32334]
[1744307476561,3.2078,1512.6,1512.0,3.309]
[1744307476562,0.00994199,1512.1,1512.0,10.5198]
[1744307476761,0.00994199,1512.1,1512.0,8.63565]
[1744307477262,0.00994199,1512.1,1511.9,0.00994199]
[1744307477456,0.00994199,1512.0,1511.9,0.00994199]
[1744307477658,0.00994199,1512.0,1511.9,1.33367199]
[1744307477853,0.00994199,1512.0,1511.9,0.00994199]
[1744307478367,1.33359199,1512.0,1511.9,0.00994199]
[1744307478555,0.00994199,1512.0,1511.9,0.00994199]
[1744307479164,1.33359199,1512.0,1511.9,0.00994199]
[1744307479360,0.00994199,1512.0,1511.9,1.33367199]
[1744307479567,5.00994199,1512.0,1511.9,0.00994199]
[1744307479865,5.00994199,1512.0,1511.3,104.1907]
[1744307479866,11.47324199,1512.0,1511.3,104.2148]
[1744307480063,0.00994199,1511.5,1511.4,1.32412]
[1744307480262,1.33427199,1511.3,1511.1,1.32442]
[1744307480460,3.26544199,1511.2,1511.1,1.32442]
[1744307480664,3.26544199,1511.2,1510.9,4.50648]
[1744307480863,3.26544199,1511.2,1510.9,1.32458]
[1744307480864,0.00994199,1511.0,1510.9,1.32458]
[1744307481066,3.24044199,1511.0,1510.9,3.21774199]
[1744307481374,1.32487,1510.6,1510.4,3.2078]
[1744307481667,1.32487,1510.6,1510.4,4.53283]
[1744307481668,0.00994199,1510.5,1510.4,4.53283]
[1744307481864,6.44824199,1510.5,1509.9,6.3814]
[1744307482060,0.00994199,1510.0,1509.9,1.32542]
[1744307482263,0.00994199,1510.0,1509.9,4.53322]
[1744307482560,12.2903,1510.5,1510.2,1.32522]
[1744307482561,3.2305,1510.3,1510.2,1.32522]
[1744307482764,3.24044199,1510.3,1510.2,1.32522]
[1744307483065,3.24044199,1510.3,1510.1,3.2078]
[1744307483265,0.00994199,1510.2,1510.1,1.32531]
[1744307483471,0.00994199,1510.2,1509.9,10.5008]
[1744307483672,3.2305,1510.3,1510.2,1.32522]
[1744307483871,3.2305,1510.3,1510.1,1.32525]
[1744307484169,0.00994199,1510.1,1510.0,1.3254]
[1744307484366,4.55566,1510.3,1509.8,6.53166199]
[1744307484569,0.00994199,1510.2,1510.1,1.32528]
[1744307484770,0.00994199,1510.4,1510.3,1.32514]
[1744307485269,3.2078,1511.3,1510.5,3.31228]
[1744307485570,3.2078,1511.3,1510.6,3.2078]
[1744307485571,0.00994199,1510.7,1510.6,3.2078]
[1744307485774,0.00994199,1510.5,1510.4,1.32505]
[1744307485965,3.3123,1510.7,1510.6,1.32487]
[1744307486165,3.3123,1510.7,1510.6,4.53267]
[1744307486365,3.32224199,1510.7,1510.6,1.32487]
[1744307486761,3.32224199,1510.7,1510.5,0.00994199]
[1744307486971,0.00994199,1510.6,1510.5,1.33490199]
[1744307487165,0.00994199,1510.6,1510.5,0.00994199]
[1744307487372,3.10624199,1510.6,1510.5,1.33490199]
[1744307487962,3.10624199,1510.6,1510.5,0.00994199]
[1744307488275,3.10624199,1510.6,1510.5,1.33490199]
[1744307488576,4.43111199,1510.6,1510.5,0.00994199]
[1744307489167,3.31243,1510.5,1509.8,3.73266312]
[1744307489371,0.00994199,1509.9,1509.8,4.53337]
[1744307489672,0.00994199,1510.0,1509.9,1.32549]
[1744307489868,3.0963,1510.2,1509.8,4.53337]
[1744307490169,3.0963,1510.2,1510.1,1.32531]
[1744307490370,3.10624199,1510.2,1510.1,1.32531]
[1744307490572,3.11618398,1510.2,1509.8,5.08077055]
[1744307490768,0.00994199,1509.9,1509.8,0.54740055]
[1744307490968,0.00994199,1509.9,1509.8,1.33551199]
[1744307491272,0.00994199,1510.2,1510.1,1.32531]
[1744307491476,0.00994199,1510.2,1510.1,4.53311]
[1744307492665,1.99e-06,1510.2,1510.1,9.53311]
[1744307492868,1.33518398,1510.2,1509.9,6.4166]
[1744307493073,0.00994199,1510.0,1509.9,1.32549]
[1744307493380,0.00994199,1510.0,1509.8,0.00994199]
[1744307493574,0.00994199,1509.9,1509.8,0.00994199]
[1744307493776,4.54323199,1509.9,1509.8,0.00994199]
[1744307493978,1.32593,1509.4,1509.3,10.3784891]
[1744307494184,1.33587199,1509.4,1509.3,10.3784891]
[1744307494381,6.33587199,1509.4,1509.3,0.03237109]
[1744307494678,0.00994199,1509.4,1509.3,1.35838109]
[1744307495475,0.00994199,1509.4,1509.3,0.03237109]
[1744307495476,1.33587199,1509.4,1509.3,0.03237109]
[1744307495874,0.00994199,1509.4,1509.3,1.35838109]
[1744307496076,1.33587199,1509.4,1509.3,0.03237109]
[1744307496276,6.33587199,1509.4,1509.3,0.03237109]
[1744307497076,1.32601,1509.3,1509.2,0.00994199]
[1744307497281,4.54375199,1509.3,1509.2,0.00994199]
[1744307497475,9.54375199,1509.3,1509.2,0.00994199]
[1744307497677,1.32641,1508.9,1508.5,6.52457]
[1744307498079,1.32641,1508.9,1508.7,1.32646]
[1744307498297,1.32645,1508.8,1508.6,1.32656]
[1744307498784,1.32654,1508.7,1508.6,1.32656]
[1744307498981,4.53432,1508.8,1508.5,0.00994199]
[1744307499183,11.83212,1509.0,1508.5,3.32665199]
[1744307499484,3.2078,1509.0,1508.9,1.32637]
[1744307499676,4.53408,1509.0,1508.8,1.32639]
[1744307499871,3.2078,1509.0,1508.7,1.32649]
[1744307500073,3.2078,1509.0,1508.9,1.32637]
[1744307500476,1.32639,1508.9,1508.7,1.32647]
[1744307500785,1.32661,1508.7,1508.5,0.00994199]
[1744307501081,1.32663,1508.6,1508.5,0.00994199]
[1744307501283,4.53443,1508.6,1508.5,0.00994199]
[1744307501478,9.53443,1508.6,1508.5,0.00994199]
[1744307502782,3.31693,1508.5,1508.1,1.32707]
[1744307502983,10.5078,1508.4,1508.3,1.32689]
[1744307503180,9.0598,1508.6,1508.1,3.31765]